bitfinex/quotes_SOLUSD_20241001
["timestamp","ask_amount","ask_price","bid_price","bid_amount"]
[1727776204266,39.673884,157.27,157.2,20.0914942]
[1727776204267,6.3597,157.24,157.2,20.0914942]
[1727776204968,6.3597,157.24,157.21,12.45822452]
[1727776205168,15.897,157.27,157.21,12.45822452]
[1727776205395,6.3601,157.23,157.21,12.45822452]
[1727776206888,6.2031,157.28,157.22,13.73021111]
[1727776207185,6.3597,157.24,157.22,12.45822452]
[1727776208163,15.8953,157.28,157.23,1.2718729]
[1727776208473,6.3589,157.26,157.23,12.45822452]
[1727776211402,6.3593,157.25,157.23,12.45822452]
[1727776211998,6.3593,157.25,157.22,12.45822452]
[1727776213000,0.35685865,157.29,157.22,12.45822452]
[1727776213202,6.3601,157.23,157.22,12.45822452]
[1727776213385,6.3609,157.21,157.2,15.6182]
[1727776213587,6.3616,157.2,157.18,23.36299081]
[1727776213769,6.3616,157.2,157.19,3.36299081]
[1727776213975,6.3616,157.2,157.17,19.10986197]
[1727776213976,6.3616,157.2,157.18,3.36299081]
[1727776214196,15.8996,157.24,157.18,3.36299081]
[1727776214378,6.3617,157.19,157.18,3.36299081]
[1727776215281,15.8996,157.24,157.18,3.36299081]
[1727776215486,6.3614,157.2,157.18,3.36410693]
[1727776216393,6.3614,157.2,157.18,3.36509099]
[1727776217000,6.3614,157.2,157.18,15.82331551]
[1727776217209,6.3614,157.2,157.18,12.45822452]
[1727776217500,6.3614,157.2,157.18,15.82331551]
[1727776217695,6.3614,157.2,157.18,12.45822452]
[1727776217902,6.3617,157.19,157.18,12.45822452]
[1727776220417,15.9014,157.22,157.17,3.36607653]
[1727776220599,6.3618,157.19,157.17,3.36607653]
[1727776222204,6.3618,157.19,157.16,28.73222452]
[1727776222499,6.3618,157.19,157.17,3.36619125]
[1727776222701,6.3618,157.19,157.16,28.73222452]
[1727776223007,6.3618,157.19,157.17,3.36578102]
[1727776223212,6.3618,157.19,157.16,28.73222452]
[1727776223383,6.3618,157.19,157.17,3.36575821]
[1727776223694,6.3618,157.19,157.16,28.73222452]
[1727776223895,6.3618,157.19,157.17,3.36565606]
[1727776224094,6.3618,157.19,157.16,28.73222452]
[1727776224495,15.9014,157.22,157.17,3.36611393]
[1727776224496,6.3621,157.18,157.17,3.36611393]
[1727776224996,16.25825865,157.22,157.13,12.45822452]
[1727776225301,6.3628,157.17,157.14,3.36753599]
[1727776225506,6.3628,157.17,157.15,3.36753599]
[1727776225679,6.3628,157.17,157.13,18.82222452]
[1727776225880,6.3628,157.17,157.14,3.36785344]
[1727776226105,6.3628,157.17,157.15,3.36785344]
[1727776226306,0.35685865,157.22,157.14,3.36785344]
[1727776226506,6.3637,157.14,157.13,3.3681375]
[1727776226714,6.3641,157.13,157.12,3.3681375]
[1727776227004,15.9056,157.18,157.11,3.3681375]
[1727776227206,6.3642,157.13,157.1,12.45822452]
[1727776227409,6.3642,157.13,157.1,15.82636202]
[1727776227985,6.3642,157.13,157.1,12.45822452]
[1727776229708,6.3638,157.14,157.12,12.45822452]
[1727776229909,6.3638,157.14,157.13,1.27261743]
[1727776230110,6.3638,157.14,157.12,12.45822452]
[1727776230707,6.3638,157.14,157.11,12.45822452]
[1727776231386,6.3638,157.14,157.1,12.45822452]
[1727776233708,6.3638,157.14,157.08,31.5473]
[1727776233709,6.3634,157.15,157.12,12.45822452]
[1727776234016,6.3634,157.15,157.13,1.27260941]
[1727776234819,6.3632,157.16,157.13,13.73083393]
[1727776237499,6.3671,157.2,157.14,12.45822452]
[1727776237500,6.3628,157.17,157.14,12.45822452]
[1727776237707,6.3628,157.17,157.15,1.27245588]
[1727776238194,6.3628,157.17,157.14,12.45822452]
[1727776238399,6.3671,157.2,157.14,12.45822452]
[1727776238708,6.363,157.16,157.13,12.45822452]
[1727776238916,6.363,157.16,157.12,18.82272452]
[1727776246514,6.363,157.16,157.12,6.3645]
[1727776246716,6.363,157.16,157.12,18.82272452]
[1727776247807,6.363,157.16,157.13,12.45822452]
[1727776248602,6.3671,157.2,157.14,13.73070217]
[1727776248818,6.3627,157.17,157.14,13.73070217]
[1727776250510,29.1603,157.24,157.16,12.45822452]
[1727776250817,29.1603,157.24,157.18,12.45822452]
[1727776251019,6.3613,157.21,157.17,12.45822452]
[1727776251705,6.3614,157.2,157.17,12.45822452]
[1727776259225,29.1603,157.24,157.19,12.45822452]
[1727776259226,15.9001,157.24,157.19,12.45822452]
[1727776259433,6.3608,157.22,157.2,1.27200147]
[1727776260468,6.3608,157.22,157.2,13.73022599]
[1727776260612,6.3608,157.22,157.21,1.27201465]
[1727776261115,6.3602,157.23,157.21,1.27201465]
[1727776261727,6.3602,157.23,157.2,12.45822452]
[1727776262034,0.35685865,157.26,157.19,12.45822452]
[1727776263226,6.3609,157.21,157.19,12.45822452]
[1727776270846,6.3609,157.21,157.18,50.07492452]
[1727776271021,6.3614,157.2,157.16,43.776884]
[1727776271221,6.3614,157.2,157.16,56.23510852]
[1727776272045,6.3614,157.2,157.16,62.59770852]
[1727776274046,0.35685865,157.24,157.16,56.23510852]
[1727776274343,38.9889,157.28,157.16,56.23510852]
[1727776274344,6.3617,157.19,157.16,36.23510852]
[1727776274551,6.3623,157.18,157.16,12.45822452]
[1727776275537,6.3618,157.19,157.16,12.45822452]
[1727776284447,0.35685865,157.22,157.15,15.9077]
[1727776284646,6.3626,157.17,157.14,28.54012452]
[1727776286739,6.3626,157.17,157.14,34.90382452]
[1727776288440,6.3626,157.17,157.14,28.54012452]
[1727776289964,6.3619,157.19,157.16,12.45822452]
[1727776291651,6.3619,157.19,157.15,42.59810852]
[1727776295360,6.3622,157.18,157.15,36.23510852]
[1727776295542,6.3622,157.18,157.15,23.776884]
[1727776296251,0.35685865,157.21,157.14,50.81272452]
[1727776296252,0.35685865,157.21,157.14,16.0819]
[1727776296451,0.35685865,157.21,157.1,6.3653]
[1727776296452,6.3638,157.14,157.1,6.3653]
[1727776296743,6.3638,157.14,157.1,13.01603355]
[1727776297942,6.3638,157.14,157.11,3.37086304]
[1727776299044,6.3642,157.13,157.12,3.37086304]
[1727776299362,6.3642,157.13,157.11,3.37086304]
[1727776299546,6.3642,157.13,157.1,3.37086304]
[1727776300238,6.3642,157.13,157.1,23.776884]
[1727776300435,6.3642,157.13,157.11,3.37000002]
[1727776300666,6.3642,157.13,157.1,23.776884]
[1727776301965,6.3645,157.12,157.1,23.776884]
[1727776302150,0.35685865,157.17,157.1,23.776884]
[1727776302350,6.3642,157.13,157.1,23.776884]
[1727776303164,6.3638,157.14,157.1,30.142184]
[1727776306156,6.3644,157.13,157.1,23.776884]
[1727776306864,6.3626,157.17,157.13,6.3638]
[1727776307071,6.3626,157.17,157.12,23.776884]
[1727776307072,22.4413,157.21,157.12,36.23510852]
[1727776307242,22.4413,157.21,157.14,20.09433438]
[1727776307243,6.3622,157.18,157.14,20.09433438]
[1727776307561,6.3622,157.18,157.15,36.23510852]
[1727776307760,6.3622,157.18,157.15,23.776884]
[1727776312468,15.9029,157.21,157.14,15.1758]
[1727776312645,6.3626,157.17,157.15,23.776884]
[1727776315767,6.3632,157.16,157.14,15.1758]
[1727776317849,15.9029,157.21,157.14,15.1758]
[1727776317850,6.3626,157.17,157.14,15.1758]
[1727776318054,6.3626,157.17,157.14,27.63402452]
[1727776318271,6.3626,157.17,157.15,12.45822452]
[1727776322373,6.363,157.16,157.14,15.1758]
[1727776324374,6.363,157.16,157.13,43.776884]
[1727776328881,6.363,157.16,157.13,56.23510852]
[1727776330379,6.3626,157.17,157.13,56.23510852]
[1727776337886,6.363,157.16,157.13,56.23510852]
[1727776339684,6.363,157.16,157.13,20.0]
[1727776340073,6.3633,157.15,157.13,20.0]
[1727776343502,6.3637,157.14,157.12,20.0]
[1727776343797,6.3637,157.14,157.11,23.776884]
[1727776344584,6.3637,157.14,157.1,34.95762452]
[1727776346891,15.9045,157.19,157.12,36.23510852]
[1727776347090,6.363,157.16,157.12,42.59930852]
[1727776348777,16.26135865,157.19,157.12,23.776884]
[1727776348993,6.3634,157.15,157.12,23.776884]
[1727776350283,16.26135865,157.19,157.1,28.59242452]
[1727776350284,6.3639,157.14,157.1,22.4994]
[1727776351506,6.3639,157.14,157.1,34.95762452]
[1727776353176,6.3639,157.14,157.11,23.776884]
[1727776355581,6.3639,157.14,157.11,30.141784]
[1727776357513,6.3633,157.15,157.12,12.45822452]
[1727776357804,6.3633,157.15,157.11,42.60000852]
[1727776360591,6.3633,157.15,157.12,3.373591]
[1727776360789,6.3633,157.15,157.11,42.60000852]
[1727776361088,6.3633,157.15,157.12,3.37358632]
[1727776361288,6.3633,157.15,157.11,42.60000852]
[1727776361503,6.3633,157.15,157.12,3.37369306]
[1727776361709,6.3633,157.15,157.11,42.60000852]
[1727776362005,6.3633,157.15,157.12,3.37382756]
[1727776362208,6.3633,157.15,157.11,42.60000852]
[1727776362401,6.3633,157.15,157.12,3.37386008]
[1727776362601,6.3633,157.15,157.11,42.60000852]
[1727776362802,6.3633,157.15,157.12,3.373862]
[1727776363004,6.3633,157.15,157.11,42.60000852]
[1727776363387,6.3633,157.15,157.12,3.37380428]
[1727776364005,6.3633,157.15,157.11,42.60000852]
[1727776368023,6.3633,157.15,157.12,3.37406878]
[1727776368201,6.3633,157.15,157.11,42.60000852]
[1727776368401,6.3633,157.15,157.12,3.37438639]
[1727776368619,6.3633,157.15,157.11,42.60000852]
[1727776368913,6.3633,157.15,157.12,9.73898885]
[1727776369108,6.3633,157.15,157.12,6.3645]
[1727776369312,6.3633,157.15,157.13,3.37438445]
[1727776369497,6.3633,157.15,157.12,6.3645]
[1727776369697,6.3633,157.15,157.13,3.37438445]
[1727776370122,6.3633,157.15,157.11,42.59990852]
[1727776370307,6.3633,157.15,157.12,3.37446519]
[1727776370510,6.3633,157.15,157.11,42.59990852]
[1727776370711,6.3633,157.15,157.12,3.37457799]
[1727776371025,6.3633,157.15,157.11,42.59990852]
[1727776371204,6.3633,157.15,157.12,12.45822452]
[1727776371719,16.26135865,157.19,157.12,18.82272452]
[1727776371720,6.3631,157.16,157.12,18.82272452]
[1727776373120,6.3631,157.16,157.13,23.776884]
[1727776376511,6.3634,157.15,157.13,23.776884]
[1727776380926,6.3634,157.15,157.13,12.45822452]
[1727776381108,6.3625,157.17,157.14,13.7307592]
[1727776381521,6.3625,157.17,157.15,1.2724351]
[1727776382222,6.3625,157.17,157.14,12.45822452]
[1727776382425,6.3625,157.17,157.15,1.27245522]
[1727776382623,6.3625,157.17,157.14,12.45822452]
[1727776385320,6.3625,157.17,157.15,13.73068198]
[1727776386736,6.3621,157.18,157.16,1.27241567]
[1727776389623,6.3617,157.19,157.15,18.82142452]
[1727776389824,6.3617,157.19,157.16,12.45822452]
[1727776391539,6.3614,157.2,157.17,1.27226281]
[1727776391834,6.3614,157.2,157.17,13.73048733]
[1727776392245,6.2057,157.28,157.2,43.776884]
[1727776392413,6.3597,157.24,157.22,12.45822452]
[1727776393016,6.359,157.26,157.22,12.45822452]
[1727776393629,6.3594,157.25,157.22,12.45822452]
[1727776394327,6.3589,157.26,157.23,1.271771]
[1727776394533,6.3589,157.26,157.22,12.45822452]
[1727776395716,6.3593,157.25,157.22,12.45822452]
[1727776396430,6.3593,157.25,157.23,1.27172371]
[1727776396742,6.3589,157.26,157.23,13.72994823]
[1727776397112,6.3581,157.28,157.24,32.45822452]
[1727776397333,6.3577,157.29,157.26,12.45822452]
[1727776397540,6.3577,157.29,157.26,20.0]
[1727776400341,0.35685865,157.31,157.26,20.0]
[1727776400531,6.3576,157.29,157.26,20.0]
[1727776402640,6.3576,157.29,157.26,32.45822452]
[1727776405848,6.3573,157.3,157.27,13.72972277]
[1727776406025,6.3573,157.3,157.27,12.45822452]
[1727776410238,6.3569,157.31,157.28,12.45822452]
[1727776412750,16.24555865,157.35,157.27,36.23510852]
[1727776412925,6.3573,157.3,157.27,36.23510852]
[1727776446278,0.35685865,157.34,157.27,23.776884]
[1727776446475,6.3581,157.28,157.26,20.0]
[1727776446682,6.3581,157.28,157.25,20.0]
[1727776447575,0.35685865,157.32,157.25,20.0]
[1727776447756,6.3578,157.29,157.25,20.0]
[1727776448780,6.3578,157.29,157.25,32.45822452]
[1727776450162,6.3575,157.3,157.26,36.23510852]
[1727776450363,6.3575,157.3,157.27,12.45822452]
[1727776452354,15.8905,157.33,157.26,23.776884]
[1727776452560,6.3579,157.29,157.25,32.45822452]
[1727776453581,6.3579,157.29,157.26,37.5066147]
[1727776454182,6.3574,157.3,157.26,37.5066147]
[1727776454363,6.3574,157.3,157.27,1.27145126]
[1727776455281,6.3574,157.3,157.26,36.23510852]
[1727776457777,6.3569,157.31,157.27,40.08797633]
[1727776459272,6.3569,157.31,157.27,38.81652452]
[1727776459978,6.3569,157.31,157.27,26.3583]
[1727776460979,0.35685865,157.35,157.27,20.0]
[1727776461186,6.3573,157.3,157.27,20.0]
[1727776462685,6.3573,157.3,157.26,46.032484]
[1727776468192,6.3573,157.3,157.26,58.49070852]
[1727776476406,6.2255,157.32,157.23,35.8993]
[1727776476581,15.8937,157.3,157.23,20.0]
[1727776476782,6.3582,157.28,157.24,18.81782452]
[1727776477083,6.3578,157.29,157.25,1.27163674]
[1727776477291,6.3578,157.29,157.25,13.72986126]
[1727776477481,6.3578,157.29,157.25,20.08896126]
[1727776477675,6.3578,157.29,157.25,18.81732452]
[1727776478291,6.3574,157.3,157.26,13.7297332]
[1727776478899,6.3574,157.3,157.26,20.0885332]
[1727776479192,6.3574,157.3,157.27,23.776884]
[1727776483088,29.552,157.36,157.28,13.72963551]
[1727776483405,6.3568,157.32,157.28,13.72963551]
[1727776484797,29.552,157.36,157.28,13.72963551]
[1727776485003,6.3568,157.31,157.28,13.72963551]
[1727776485408,6.3568,157.31,157.28,12.45822452]
[1727776489912,6.3568,157.31,157.27,42.59340852]
[1727776500308,6.3568,157.31,157.28,12.45822452]
[1727776500634,6.3568,157.31,157.27,42.59340852]
[1727776505630,29.552,157.36,157.28,18.81622452]
[1727776505802,6.3567,157.32,157.28,18.81622452]
[1727776506598,6.3568,157.31,157.28,18.81622452]
[1727776508322,6.3568,157.31,157.28,6.358]
[1727776508621,6.3568,157.31,157.27,36.23510852]
[1727776508924,6.3568,157.31,157.27,42.59340852]
[1727776509320,6.3568,157.31,157.28,3.37133459]
[1727776509522,6.3568,157.31,157.27,42.59340852]
[1727776524222,6.3568,157.31,157.28,3.37074501]
[1727776524416,6.3568,157.31,157.27,42.59340852]
[1727776524738,6.3568,157.31,157.28,3.37074766]
[1727776525031,6.3568,157.31,157.27,42.59340852]
[1727776525220,6.3568,157.31,157.28,23.37074698]
[1727776525419,6.3568,157.31,157.28,20.0]
[1727776527833,6.3562,157.33,157.29,36.23510852]
[1727776528030,6.3555,157.35,157.31,18.81492452]
[1727776528235,6.3555,157.35,157.32,1.27107717]
[1727776529906,0.2275384,157.37,157.31,12.45822452]
[1727776530112,6.3556,157.34,157.3,34.70812452]
[1727776540037,0.2275384,157.37,157.3,28.35102452]
[1727776540236,6.3553,157.35,157.31,42.59190852]
[1727776541124,6.3553,157.35,157.31,30.133684]
[1727776541429,6.3557,157.34,157.31,23.776884]
[1727776541629,6.3557,157.34,157.3,34.70812452]
[1727776542537,0.2275384,157.37,157.3,28.35102452]
[1727776542720,6.3553,157.35,157.31,18.81492452]
[1727776544041,6.3553,157.35,157.31,6.3567]
[1727776544728,6.3553,157.35,157.3,34.70812452]
[1727776546641,0.58439705,157.37,157.3,34.70812452]
[1727776546844,6.3556,157.34,157.3,34.70812452]
[1727776551752,0.2275384,157.37,157.31,20.0]
[1727776551928,6.3553,157.35,157.31,50.133684]
[1727776552134,0.2275384,157.37,157.31,43.776884]
[1727776552135,6.3557,157.34,157.31,43.776884]
[1727776553849,6.3557,157.34,157.31,20.0]
[1727776555346,6.3557,157.34,157.31,26.3568]
[1727776555561,6.3553,157.35,157.31,26.3568]
[1727776557527,0.2275384,157.37,157.31,20.0]
[1727776558449,6.3555,157.35,157.31,26.3567]
[1727776567258,6.3555,157.35,157.32,1.27106529]
[1727776567464,6.3555,157.35,157.31,26.3567]
[1727776567668,6.3549,157.36,157.32,7.6272271]
[1727776568660,6.3549,157.36,157.32,6.3562]
[1727776571264,0.35685865,157.35,157.29,15.6659]
[1727776571561,16.24525865,157.35,157.29,15.6659]
[1727776571753,6.3569,157.31,157.29,15.6659]
[1727776573835,0.35685865,157.34,157.28,3.37087648]
[1727776574037,6.3573,157.3,157.26,6.0177]
[1727776574253,6.3573,157.3,157.26,12.3765]
[1727776574449,0.35685865,157.34,157.26,6.0177]
[1727776574659,6.3577,157.29,157.26,6.0177]
[1727776574961,15.8907,157.33,157.27,6.74206593]
[1727776574962,6.3573,157.3,157.27,6.74206593]
[1727776575135,6.3573,157.3,157.27,3.37132324]
[1727776576763,6.3577,157.29,157.27,3.37132324]
[1727776577061,15.8907,157.33,157.27,3.37132324]
[1727776577062,6.3573,157.3,157.27,3.37132324]
[1727776584463,6.3579,157.29,157.27,3.37132324]
[1727776585375,6.3579,157.29,157.25,38.2056]
[1727776587966,15.8907,157.33,157.25,31.8464]
[1727776588156,6.3573,157.3,157.26,6.3587]
[1727776588973,15.8907,157.33,157.25,31.8464]
[1727776589269,6.3577,157.29,157.25,38.2056]
[1727776591451,6.3585,157.27,157.25,15.9486]
[1727776592546,15.8923,157.31,157.25,15.9486]
[1727776592753,6.3582,157.28,157.25,15.9486]
[1727776593060,6.3579,157.29,157.25,23.57949655]
[1727776593261,6.3579,157.29,157.25,22.3078]
[1727776593765,15.8923,157.31,157.25,15.9486]
[1727776593955,6.3581,157.28,157.25,15.9486]
[1727776600360,0.35685865,157.3,157.25,15.9486]
[1727776600679,6.3588,157.27,157.23,50.136784]
[1727776602180,6.3589,157.26,157.23,43.776884]
[1727776603857,0.35685865,157.25,157.21,15.9264]
[1727776604175,6.3608,157.22,157.18,28.57548702]
[1727776604478,6.3608,157.22,157.18,28.2914]
[1727776606069,15.8966,157.27,157.18,21.9294]
[1727776606372,6.3603,157.23,157.19,6.3617]
[1727776612692,6.3617,157.19,157.17,15.314]
[1727776613062,0.35685865,157.22,157.17,15.314]
[1727776613259,6.3614,157.2,157.17,15.314]
[1727776617885,0.35685865,157.22,157.17,15.314]
[1727776618064,6.3614,157.2,157.17,15.314]
[1727776624573,0.35685865,157.22,157.15,15.9076]
[1727776624775,0.35685865,157.22,157.14,6.239]
[1727776624776,6.3624,157.18,157.14,12.6026]
[1727776628064,6.3619,157.19,157.15,6.3633]
[1727776628270,6.3619,157.19,157.16,1.27237025]
[1727776632093,6.3619,157.19,157.15,6.3633]
[1727776632787,15.9005,157.23,157.16,1.27238472]
[1727776632991,6.3614,157.2,157.16,7.63518472]
[1727776635193,6.3607,157.22,157.18,6.3621]
[1727776636897,0.35685865,157.25,157.17,23.776884]
[1727776637192,6.3614,157.2,157.17,23.776884]
[1727776637494,6.3614,157.2,157.17,30.139384]
[1727776637798,6.361,157.21,157.17,30.139384]
[1727776641591,0.35685865,157.23,157.16,34.72762452]
[1727776641592,6.3614,157.2,157.16,34.72762452]
[1727776642200,6.361,157.21,157.17,30.139384]
[1727776642391,6.361,157.21,157.17,31.41163488]
[1727776642584,6.361,157.21,157.17,30.139384]
[1727776644305,6.361,157.21,157.17,42.59760852]
[1727776644499,6.361,157.21,157.18,6.3621]
[1727776644690,6.3605,157.22,157.18,6.3621]
[1727776644998,6.3605,157.22,157.18,18.82032452]
[1727776645587,6.3599,157.24,157.2,18.81922452]
[1727776663613,0.35685865,157.26,157.19,23.776884]
[1727776663818,6.3604,157.23,157.19,30.138484]
[1727776664117,6.3605,157.22,157.19,23.776884]
[1727776664302,6.3613,157.2,157.17,15.3105]
[1727776664508,6.3613,157.2,157.18,3.36831846]
[1727776665101,6.361,157.21,157.18,3.36831846]
[1727776667225,6.361,157.21,157.17,34.13122452]
[1727776668728,6.361,157.21,157.18,1.27217886]
[1727776669403,6.3607,157.22,157.18,7.63417886]
[1727776670101,6.3607,157.22,157.18,6.362]
[1727776670316,6.3607,157.22,157.17,43.67482452]
[1727776670522,6.3609,157.21,157.18,23.776884]
[1727776673329,6.3606,157.22,157.19,1.27211401]
[1727776675517,6.3606,157.22,157.18,42.59690852]
[1727776675831,6.3606,157.22,157.19,1.27209758]
[1727776677430,6.3606,157.22,157.19,7.63379758]
[1727776678233,6.3598,157.24,157.2,7.63328898]
[1727776678405,6.3598,157.24,157.2,6.3612]
[1727776678825,15.896,157.28,157.19,28.36222452]
[1727776679010,6.3601,157.23,157.19,34.72372452]
[1727776681214,6.3601,157.23,157.2,1.27198295]
[1727776681605,6.3601,157.23,157.19,34.72372452]
[1727776684126,6.3601,157.23,157.19,22.2655]
[1727776685432,6.3606,157.22,157.18,42.59710852]
[1727776686331,6.3606,157.22,157.18,30.138884]
[1727776693630,6.3609,157.21,157.18,20.0]
[1727776694926,6.3615,157.2,157.18,20.0]
[1727776697321,0.35685865,157.23,157.17,15.3105]
[1727776697322,6.3621,157.19,157.17,15.3105]
[1727776697528,6.3621,157.19,157.15,15.82937219]
[1727776697733,6.3621,157.19,157.15,12.45822452]
[1727776698242,6.3624,157.18,157.15,3.37078096]
[1727776698437,6.3618,157.19,157.14,25.37702452]
[1727776698834,6.3618,157.19,157.15,20.0]
[1727776702038,6.3618,157.19,157.15,26.3632]
[1727776704046,6.3618,157.19,157.15,38.82142452]
[1727776704941,6.3625,157.17,157.13,38.8167]
[1727776705151,6.3625,157.17,157.14,20.0]
[1727776706340,6.3622,157.18,157.14,20.0]
[1727776708027,6.3622,157.18,157.14,26.3636]
[1727776708227,6.3622,157.18,157.14,38.82182452]
[1727776708422,15.9018,157.22,157.15,12.45822452]
[1727776708630,6.3618,157.19,157.16,1.27234992]
[1727776708926,6.3618,157.19,157.15,18.82142452]
[1727776709826,6.3618,157.19,157.15,6.3632]
[1727776713753,6.3618,157.19,157.15,18.82142452]
[1727776713933,6.3618,157.19,157.16,1.27238301]
[1727776714128,6.3618,157.19,157.15,18.82142452]
[1727776714341,6.3618,157.19,157.15,6.3632]
[1727776724436,15.9018,157.22,157.14,20.0]
[1727776724650,6.3621,157.18,157.14,26.3635]
[1727776725645,0.35685865,157.21,157.14,26.3635]
[1727776725646,6.3625,157.17,157.14,20.0]
[1727776726249,6.3625,157.17,157.13,22.2736]
[1727776727361,6.3629,157.16,157.13,22.2736]
[1727776728452,6.3626,157.17,157.13,22.2736]
[1727776730368,6.3631,157.16,157.13,15.9097]
[1727776730863,6.3631,157.16,157.13,20.0]
[1727776732146,6.3622,157.18,157.15,12.45822452]
[1727776732358,6.3622,157.18,157.16,1.27238688]
[1727776733070,6.3622,157.18,157.15,12.45822452]
[1727776733289,6.3622,157.18,157.16,1.2723949]
[1727776735065,6.3622,157.18,157.15,12.45822452]
[1727776737467,6.3622,157.18,157.14,18.82182452]
[1727776738467,6.3622,157.18,157.14,6.3636]
[1727776738771,6.3622,157.18,157.14,18.82182452]
[1727776739152,6.3622,157.18,157.14,22.19371985]
[1727776739646,6.3622,157.18,157.14,18.82182452]
[1727776741569,6.3622,157.18,157.14,6.3636]
[1727776744776,6.3625,157.17,157.13,26.364]
[1727776745078,6.3625,157.17,157.14,3.37586072]
[1727776745280,6.3625,157.17,157.13,26.364]
[1727776745459,6.3625,157.17,157.14,3.37599422]
[1727776745655,6.3625,157.17,157.13,26.364]
[1727776745856,6.3625,157.17,157.14,3.3760513]
[1727776746173,6.3625,157.17,157.13,26.364]
[1727776746368,6.3625,157.17,157.14,3.37612271]
[1727776746556,6.3625,157.17,157.13,26.364]
[1727776746755,6.3625,157.17,157.14,3.37611316]
[1727776746955,6.3625,157.17,157.13,26.364]
[1727776747158,6.3625,157.17,157.14,3.37613286]
[1727776747349,6.3625,157.17,157.13,26.364]
[1727776747548,6.3625,157.17,157.14,3.37628757]
[1727776747777,6.3625,157.17,157.13,26.364]
[1727776747964,6.3625,157.17,157.14,3.37628757]
[1727776748165,6.3625,157.17,157.13,26.364]
[1727776748478,6.3625,157.17,157.14,3.37646682]
[1727776748651,6.3625,157.17,157.13,26.364]
[1727776749265,6.3625,157.17,157.14,3.37646751]
[1727776749757,6.3625,157.17,157.13,26.364]
[1727776749956,6.3625,157.17,157.14,3.37667553]
[1727776750156,6.3625,157.17,157.13,26.364]
[1727776750473,6.3625,157.17,157.14,3.37695503]
[1727776750682,6.3625,157.17,157.13,26.364]
[1727776750881,6.3625,157.17,157.14,3.37695434]
[1727776751181,6.3625,157.17,157.13,26.364]
[1727776751373,6.3625,157.17,157.14,3.37693977]
[1727776751562,6.3625,157.17,157.13,26.364]
[1727776751761,6.3625,157.17,157.14,3.37693977]
[1727776751983,6.3625,157.17,157.13,26.364]
[1727776752287,6.3633,157.15,157.14,3.37694046]
[1727776752587,6.3633,157.15,157.11,6.3649]
[1727776752764,6.3633,157.15,157.12,3.37723576]
[1727776752971,6.3633,157.15,157.13,3.37723576]
[1727776753165,6.3633,157.15,157.1,12.45822452]
[1727776753373,6.3633,157.15,157.11,3.376952]
[1727776753571,6.3633,157.15,157.12,3.376952]
[1727776753775,6.3633,157.15,157.11,26.3649]
[1727776753973,6.3633,157.15,157.12,3.37691398]
[1727776754171,6.3633,157.15,157.11,26.3649]
[1727776754356,6.3633,157.15,157.12,3.37623459]
[1727776754561,0.35685865,157.14,157.09,22.2795]
[1727776754884,0.35685865,157.18,157.1,3.37627603]
[1727776755077,0.35685865,157.18,157.11,3.37627603]
[1727776755280,0.35685865,157.18,157.09,22.2795]
[1727776755484,6.3641,157.13,157.1,3.37563186]
[1727776755656,6.3641,157.13,157.11,3.37563186]
[1727776755982,6.3641,157.13,157.09,15.9139]
[1727776756281,6.3641,157.13,157.1,3.37564022]
[1727776756483,6.3641,157.13,157.11,3.37564022]
[1727776756788,6.3641,157.13,157.09,15.9139]
[1727776756987,6.3641,157.13,157.1,3.37508118]
[1727776757285,6.3641,157.13,157.11,3.37508118]
[1727776757477,6.3641,157.13,157.09,15.9139]
[1727776757659,6.3641,157.13,157.1,3.37462321]
[1727776757863,6.3641,157.13,157.11,3.37462321]
[1727776758168,6.3641,157.13,157.09,15.9139]
[1727776758871,6.3641,157.13,157.1,3.374224]
[1727776759681,6.3641,157.13,157.11,3.374224]
[1727776759863,6.3641,157.13,157.09,22.2796]
[1727776760063,6.3641,157.13,157.1,3.37387645]
[1727776760259,6.3641,157.13,157.11,3.37387645]
[1727776760486,6.3641,157.13,157.09,34.73782452]